bitfinex/quotes_BTCUSD_20230901
["timestamp","ask_amount","ask_price","bid_price","bid_amount"]
[1693596120689,5.35695389,25621.0,25620.0,0.01853041]
[1693596120888,5.35455389,25621.0,25620.0,0.01853041]
[1693596121151,5.35581389,25621.0,25620.0,0.01853041]
[1693596121272,5.35587389,25621.0,25620.0,0.01853041]
[1693596121465,5.35539389,25621.0,25620.0,0.01853041]
[1693596121687,5.35815389,25621.0,25620.0,0.01853041]
[1693596121884,5.35803389,25621.0,25620.0,0.01853041]
[1693596122101,5.35839389,25621.0,25620.0,0.01853041]
[1693596122331,5.35467389,25621.0,25620.0,0.01853041]
[1693596122545,5.35707389,25621.0,25620.0,0.01853041]
[1693596122952,5.36073389,25621.0,25620.0,0.01853041]
[1693596123158,5.36157389,25621.0,25620.0,0.01853041]
[1693596123410,5.36079389,25621.0,25620.0,0.01853041]
[1693596123610,5.03291389,25621.0,25620.0,0.01853041]
[1693596123876,4.58221389,25621.0,25620.0,0.01853041]
[1693596124293,4.53049042,25621.0,25620.0,0.01853041]
[1693596124512,4.42849042,25621.0,25620.0,0.01853041]
[1693596124721,4.44849042,25621.0,25620.0,0.01853041]
[1693596124856,4.51623042,25621.0,25620.0,0.01853041]
[1693596125051,4.52757042,25621.0,25620.0,0.01853041]
[1693596125413,4.52247042,25621.0,25620.0,0.01853041]
[1693596125573,4.64561042,25621.0,25620.0,0.01853041]
[1693596125775,4.65689042,25621.0,25620.0,0.01853041]
[1693596125975,4.65767042,25621.0,25620.0,0.01853041]
[1693596126131,4.67527042,25621.0,25620.0,0.01853041]
[1693596126334,4.67521042,25621.0,25620.0,0.01853041]
[1693596126540,4.67527042,25621.0,25620.0,0.01853041]
[1693596126742,4.67407042,25621.0,25620.0,0.01853041]
[1693596126940,4.66141042,25621.0,25620.0,0.01853041]
[1693596127139,4.66147042,25621.0,25620.0,0.01853041]
[1693596127394,4.66207042,25621.0,25620.0,0.01853041]
[1693596127567,4.65631042,25621.0,25620.0,0.01853041]
[1693596127764,4.06849042,25621.0,25620.0,0.01853041]
[1693596129577,2.47969042,25621.0,25620.0,0.01853041]
[1693596130156,2.62169042,25621.0,25620.0,0.01853041]
[1693596130351,2.88115042,25621.0,25620.0,0.01853041]
[1693596130634,2.87833042,25621.0,25620.0,0.01853041]
[1693596130951,2.88205042,25621.0,25620.0,0.01853041]
[1693596131137,2.87755042,25621.0,25620.0,0.01853041]
[1693596131311,2.87809042,25621.0,25620.0,0.01853041]
[1693596131642,2.87593042,25621.0,25620.0,0.01853041]
[1693596131841,2.87323042,25621.0,25620.0,0.01853041]
[1693596132052,2.87023042,25621.0,25620.0,0.01853041]
[1693596132245,2.87203042,25621.0,25620.0,0.01853041]
[1693596132491,2.86723042,25621.0,25620.0,0.01853041]
[1693596134295,3.63723042,25621.0,25620.0,0.01853041]
[1693596134509,3.64047042,25621.0,25620.0,0.01853041]
[1693596134715,3.77583514,25621.0,25620.0,0.01853041]
[1693596134913,3.76887514,25621.0,25620.0,0.01853041]
[1693596135070,3.93035514,25621.0,25620.0,0.01853041]
[1693596135273,3.92789246,25621.0,25620.0,0.01853041]
[1693596135472,3.92681246,25621.0,25620.0,0.01853041]
[1693596135672,5.55988349,25621.0,25620.0,0.01853041]
[1693596135878,5.55856349,25621.0,25620.0,0.01853041]
[1693596136233,5.56096349,25621.0,25620.0,0.01853041]
[1693596136353,5.55856349,25621.0,25620.0,0.01853041]
[1693596136577,5.55076349,25621.0,25620.0,0.01853041]
[1693596136781,5.60088758,25621.0,25620.0,0.01853041]
[1693596137109,5.55088349,25621.0,25620.0,0.01853041]
[1693596137317,5.55028349,25621.0,25620.0,0.01853041]
[1693596137570,6.14419418,25621.0,25620.0,0.01853041]
[1693596137778,6.18998769,25621.0,25620.0,0.01853041]
[1693596137980,6.20690769,25621.0,25620.0,0.01853041]
[1693596138181,6.21062769,25621.0,25620.0,0.01853041]
[1693596138385,0.4907,25619.0,25618.0,0.019695]
[1693596138602,4.11334327,25619.0,25618.0,0.019695]
[1693596142135,4.41527323,25619.0,25618.0,0.019695]
[1693596142308,4.41521323,25619.0,25618.0,0.019695]
[1693596142515,4.41513828,25619.0,25618.0,0.019695]
[1693596142678,4.41465828,25619.0,25618.0,0.019695]
[1693596142880,4.41471828,25619.0,25618.0,0.019695]
[1693596143105,4.39453828,25619.0,25618.0,0.019695]
[1693596143312,4.39807828,25619.0,25618.0,0.019695]
[1693596143511,5.09651828,25619.0,25618.0,0.019695]
[1693596143684,5.09639828,25619.0,25618.0,0.019695]
[1693596143880,5.09621828,25619.0,25618.0,0.019695]
[1693596144098,5.09591828,25619.0,25618.0,0.019695]
[1693596144304,5.09693828,25619.0,25618.0,0.019695]
[1693596144514,5.10041828,25619.0,25618.0,0.019695]
[1693596144763,5.10089828,25619.0,25618.0,0.019695]
[1693596144965,5.24111828,25619.0,25618.0,0.019695]
[1693596145161,5.24987828,25619.0,25618.0,0.019695]
[1693596145378,5.24735828,25619.0,25618.0,0.019695]
[1693596145573,5.24495828,25619.0,25618.0,0.019695]
[1693596145750,5.23979828,25619.0,25618.0,0.019695]
[1693596146118,4.39531828,25619.0,25618.0,0.019695]
[1693596146226,4.39051828,25619.0,25618.0,0.019695]
[1693596146626,4.39177828,25619.0,25618.0,0.019695]
[1693596146875,4.39483828,25619.0,25618.0,0.019695]
[1693596147121,4.39459828,25619.0,25618.0,0.019695]
[1693596147315,4.39609828,25619.0,25618.0,0.019695]
[1693596147509,4.39567828,25619.0,25618.0,0.019695]
[1693596147726,4.39705828,25619.0,25618.0,0.019695]
[1693596147925,4.58486609,25619.0,25618.0,0.019695]
[1693596148124,4.58468609,25619.0,25618.0,0.019695]
[1693596148264,4.39609828,25619.0,25618.0,0.019695]
[1693596148469,4.39843828,25619.0,25618.0,0.019695]
[1693596148670,4.58774609,25619.0,25618.0,0.019695]
[1693596148918,4.58696609,25619.0,25618.0,0.019695]
[1693596149275,4.58702609,25619.0,25618.0,0.019695]
[1693596149475,4.58570609,25619.0,25618.0,0.019695]
[1693596149677,4.44501523,25619.0,25618.0,0.019695]
[1693596149917,4.44483523,25619.0,25618.0,0.019695]
[1693596150072,4.44945523,25619.0,25618.0,0.019695]
[1693596150272,4.58361523,25619.0,25618.0,0.019695]
[1693596150641,5.29933523,25619.0,25618.0,0.019695]
[1693596150847,5.29873523,25619.0,25618.0,0.019695]
[1693596151051,5.29969523,25619.0,25618.0,0.019695]
[1693596151186,5.29837523,25619.0,25618.0,0.019695]
[1693596151386,5.29657523,25619.0,25618.0,0.019695]
[1693596151639,5.29609523,25619.0,25618.0,0.019695]
[1693596151840,5.53438,25619.0,25618.0,0.019695]
[1693596152105,5.53498,25619.0,25618.0,0.019695]
[1693596152307,0.4907,25615.0,25614.0,0.019695]
[1693596152511,0.4907,25615.0,25611.0,0.019695]
[1693596152512,0.4907,25612.0,25611.0,0.019695]
[1693596152711,2.29757038,25612.0,25611.0,0.019695]
[1693596152957,2.70623038,25612.0,25611.0,0.019695]
[1693596153157,4.71735219,25612.0,25611.0,0.019695]
[1693596153362,0.4707,25610.0,25609.0,0.019465]
[1693596153558,3.87109253,25610.0,25609.0,0.019465]
[1693596153709,3.99357782,25610.0,25609.0,0.019465]
[1693596153911,4.14992082,25610.0,25609.0,0.019465]
[1693596154129,4.05580178,25610.0,25609.0,0.019465]
[1693596154399,4.06144178,25610.0,25609.0,0.019465]
[1693596154599,4.06960178,25610.0,25609.0,0.019465]
[1693596154749,4.07404178,25610.0,25609.0,0.019465]
[1693596154950,4.11076178,25610.0,25609.0,0.019465]
[1693596155154,4.09534178,25610.0,25609.0,0.019465]
[1693596155352,4.05736178,25610.0,25609.0,0.019465]
[1693596155578,4.09558178,25610.0,25609.0,0.019465]
[1693596155904,4.09114178,25610.0,25609.0,0.019465]
[1693596156108,4.09660178,25610.0,25609.0,0.019465]
[1693596156403,4.06732178,25610.0,25609.0,0.019465]
[1693596156638,4.09900178,25610.0,25609.0,0.019465]
[1693596156849,4.09654178,25610.0,25609.0,0.019465]
[1693596157051,4.09690178,25610.0,25609.0,0.019465]
[1693596157257,4.10092178,25610.0,25609.0,0.019465]
[1693596157454,4.09822178,25610.0,25609.0,0.019465]
[1693596157652,3.87090178,25610.0,25609.0,0.019465]
[1693596158129,3.87090178,25610.0,25609.0,0.29863006]
[1693596158130,0.61536978,25610.0,25609.0,0.29863006]
[1693596158331,0.45908678,25610.0,25609.0,0.67634906]
[1693596158538,0.45908678,25610.0,25609.0,0.61777606]
[1693596158967,0.45908678,25610.0,25609.0,0.62862904]
[1693596159147,1.0256,25616.0,25614.0,0.02]
[1693596159148,0.9856,25616.0,25614.0,0.02]
[1693596159406,0.9856,25616.0,25615.0,0.27290142]
[1693596159824,0.9856,25616.0,25615.0,0.122]
[1693596160044,0.9856,25616.0,25614.0,0.078559]
[1693596160457,0.9856,25616.0,25614.0,0.2922109]
[1693596160966,1.0226,25616.0,25615.0,0.003]
[1693596161169,1.0586,25616.0,25615.0,0.01384995]
[1693596161372,1.0586,25616.0,25615.0,0.003]
[1693596161581,0.037,25616.0,25615.0,0.4623846]
[1693596161784,0.074,25616.0,25615.0,0.4623846]
[1693596161995,0.58549,25620.0,25618.0,0.02]
[1693596162197,0.97259078,25619.0,25618.0,0.17090142]
[1693596162402,0.58549,25620.0,25618.0,0.142]
[1693596162607,0.97257578,25620.0,25618.0,0.142]
[1693596162782,1.5888,25621.0,25618.0,0.259103]
[1693596162994,0.42408678,25620.0,25618.0,0.023]
[1693596163195,0.585502,25619.0,25618.0,0.023]
[1693596163406,0.97258878,25619.0,25618.0,0.023]
[1693596163602,0.97258878,25619.0,25618.0,0.02]
[1693596163946,0.97258878,25619.0,25618.0,0.023]
[1693596164386,1.00958878,25619.0,25618.0,0.026]
[1693596164949,1.00958878,25619.0,25618.0,0.003]
[1693596165158,1.00958878,25619.0,25618.0,0.023]
[1693596165363,1.04658878,25619.0,25618.0,0.026]
[1693596166794,1.63209078,25619.0,25618.0,0.026]
[1693596167198,0.46108678,25619.0,25618.0,0.026]
[1693596167429,0.074,25619.0,25618.0,0.46817077]
[1693596167771,0.074,25619.0,25618.0,0.52672277]
[1693596168186,1.5378,25621.0,25618.0,0.53755532]
[1693596168341,1.5378,25621.0,25620.0,0.122]
[1693596168974,1.5378,25621.0,25620.0,0.117096]
[1693596169203,1.5378,25621.0,25619.0,0.32692524]
[1693596169597,1.5738,25621.0,25620.0,0.003]
[1693596170009,1.5378,25621.0,25619.0,0.32692524]
[1693596170385,1.5738,25621.0,25619.0,0.32992524]
[1693596170814,1.5738,25621.0,25620.0,0.17889782]
[1693596171153,1.6098,25621.0,25620.0,0.18189782]
[1693596171380,1.5738,25621.0,25620.0,0.17889782]
[1693596171650,1.6098,25621.0,25620.0,0.17889782]
[1693596171878,1.5738,25621.0,25620.0,0.17889782]
[1693596172086,1.5378,25621.0,25620.0,0.17889782]
[1693596172657,0.036,25621.0,25620.0,0.18189782]
[1693596173456,0.072,25621.0,25620.0,0.18489782]
[1693596173862,0.072,25621.0,25620.0,0.006]
[1693596175615,0.072,25621.0,25620.0,0.21981101]
[1693596180224,0.072,25621.0,25620.0,0.46181101]
[1693596180401,0.072,25621.0,25620.0,0.66350422]
[1693596180759,0.072,25621.0,25620.0,0.67425795]
[1693596181336,0.072,25621.0,25620.0,0.23875373]
[1693596181538,0.072,25621.0,25620.0,0.11675373]
[1693596182158,1.828371,25621.0,25620.0,0.01675373]
[1693596182352,1.828371,25621.0,25620.0,0.006]
[1693596182758,0.657457,25621.0,25620.0,0.128]
[1693596183443,0.072,25621.0,25620.0,0.128]
[1693596183642,0.072,25621.0,25620.0,0.35105807]
[1693596183990,0.072,25621.0,25620.0,0.40960607]
[1693596184197,0.072,25621.0,25620.0,0.46815407]
[1693596185763,0.072,25621.0,25620.0,0.62670207]
[1693596186165,0.072,25621.0,25620.0,0.57891508]
[1693596186570,0.072,25621.0,25620.0,0.56815407]
[1693596188403,0.072,25621.0,25620.0,0.5788575]
[1693596188602,0.072,25621.0,25620.0,0.6374055]
[1693596194111,0.036,25621.0,25620.0,0.6314055]
[1693596194311,0.154,25623.0,25621.0,0.1]
[1693596194532,0.154,25623.0,25622.0,0.058543]
[1693596194766,0.39820272,25623.0,25622.0,0.058543]
[1693596195529,0.43220272,25623.0,25622.0,0.003]
[1693596196549,0.46620272,25623.0,25622.0,0.003]
[1693596196753,1.05161372,25623.0,25622.0,0.003]
[1693596196961,1.01761372,25623.0,25622.0,0.003]
[1693596197375,0.46620272,25623.0,25622.0,0.006]
[1693596198112,0.46620272,25623.0,25622.0,0.064543]
[1693596202166,0.46620272,25623.0,25622.0,0.3525784]
[1693596202347,0.31220272,25623.0,25622.0,0.5331214]
[1693596202547,0.31220272,25623.0,25622.0,0.54381328]
[1693596203136,0.31220272,25623.0,25622.0,0.64381328]
[1693596203341,0.31220272,25623.0,25622.0,0.41432088]
[1693596203546,0.068,25623.0,25622.0,0.64101115]
[1693596204592,0.068,25623.0,25622.0,0.41432088]
[1693596204795,0.068,25623.0,25622.0,0.82140766]
[1693596205001,0.068,25623.0,25622.0,1.18140766]
[1693596205619,0.034,25623.0,25622.0,1.17840766]
[1693596205832,0.23409761,25630.0,25628.0,0.1]
[1693596206038,0.09363904,25630.0,25629.0,0.15090142]
[1693596206246,0.1521,25629.0,25628.0,0.48995742]
[1693596206448,0.39626543,25629.0,25628.0,0.217056]
[1693596207263,0.39626543,25629.0,25628.0,0.22768466]
[1693596207482,0.27516543,25629.0,25628.0,1.03265263]
[1693596207901,0.031,25629.0,25628.0,1.03265263]
[1693596208313,0.062,25629.0,25628.0,1.03565263]
[1693596208755,0.031,25629.0,25628.0,1.03265263]
[1693596208958,0.031,25629.0,25628.0,1.04065263]
[1693596209110,0.1521,25633.0,25628.0,1.03765263]
[1693596209287,0.1521,25633.0,25632.0,0.122]
[1693596209489,0.39623506,25633.0,25632.0,0.18052]
[1693596210121,0.39623506,25633.0,25632.0,0.19111079]
[1693596210349,0.41023506,25633.0,25632.0,0.18052]
[1693596210786,0.39623506,25633.0,25632.0,0.18052]
[1693596210996,0.39623506,25633.0,25632.0,0.18352]
[1693596211201,0.45623506,25633.0,25632.0,0.18652]
[1693596211421,0.45623506,25633.0,25632.0,0.128]
[1693596211834,0.45623506,25633.0,25632.0,0.098]
[1693596212444,0.45623506,25633.0,25632.0,0.31504]
[1693596212849,0.45623506,25633.0,25632.0,0.32556465]
[1693596213480,0.45623506,25633.0,25632.0,0.6014272]
[1693596213685,0.45623506,25633.0,25632.0,0.6599472]
[1693596214286,0.30413506,25633.0,25632.0,0.6599472]
[1693596215753,0.06,25633.0,25632.0,0.6599472]
[1693596216158,0.30411899,25633.0,25632.0,0.6599472]
[1693596216360,0.06,25633.0,25632.0,0.38408465]
[1693596219456,0.06,25633.0,25632.0,0.11652465]
[1693596219683,0.645183,25633.0,25632.0,0.11652465]
[1693596219856,0.645183,25633.0,25632.0,0.106]
[1693596220290,0.802483,25633.0,25632.0,0.106]
[1693596220494,0.2173,25633.0,25632.0,0.106]
[1693596222001,0.2173,25633.0,25632.0,0.11656878]
[1693596222203,0.2173,25633.0,25632.0,0.17508878]
[1693596223013,0.2173,25633.0,25632.0,0.66859339]
[1693596224515,0.2173,25633.0,25632.0,0.41412878]
[1693596229231,0.2173,25633.0,25632.0,0.39412878]
[1693596229990,0.06,25633.0,25632.0,0.39412878]
[1693596232941,0.06,25633.0,25632.0,0.21360878]
[1693596234165,0.3041137,25633.0,25632.0,0.21360878]
[1693596238166,0.3041137,25633.0,25632.0,0.69521664]
[1693596239035,0.2751137,25633.0,25632.0,0.69221664]
[1693596239368,0.2581137,25633.0,25632.0,0.69021664]
[1693596239735,0.2761137,25633.0,25632.0,0.69121664]
[1693596239914,0.2761137,25633.0,25632.0,1.00811698]
[1693596240144,0.9856,25639.0,25638.0,0.12]
[1693596240344,0.24405819,25639.0,25638.0,0.60692542]
[1693596240545,0.24405819,25641.0,25638.0,0.60692542]
[1693596240918,0.24405819,25640.0,25639.0,0.01045532]
[1693596241068,0.1568,25640.0,25639.0,0.18596732]
[1693596241272,0.40085819,25640.0,25639.0,0.175512]
[1693596242239,0.40085819,25640.0,25639.0,0.176512]
[1693596243349,0.40285819,25640.0,25639.0,0.001]
[1693596243558,1.57290419,25640.0,25639.0,0.001]
[1693596244423,0.98788119,25640.0,25639.0,0.001]
[1693596245956,1.57290419,25640.0,25639.0,0.001]
[1693596246190,1.95999097,25640.0,25639.0,0.001]
[1693596247878,0.40285819,25640.0,25639.0,0.059504]
[1693596248090,0.40285819,25640.0,25639.0,0.118008]
[1693596248446,0.40285819,25640.0,25639.0,0.176512]
[1693596249419,0.40285819,25640.0,25639.0,0.39361202]
[1693596249593,0.40285819,25640.0,25639.0,0.51561202]
[1693596250581,0.40285819,25640.0,25639.0,0.52607177]
[1693596250904,0.40285819,25640.0,25639.0,0.87605853]
[1693596250905,0.24605819,25640.0,25639.0,0.87605853]
[1693596251108,0.002,25640.0,25639.0,1.17605853]
[1693596251914,0.002,25640.0,25639.0,1.45255441]
[1693596252234,1.1457,25645.0,25643.0,0.175485]
[1693596252457,0.24403254,25644.0,25643.0,0.44838642]
[1693596252685,0.24403254,25645.0,25643.0,0.297485]
[1693596252871,0.24403254,25644.0,25643.0,0.297485]
[1693596253552,0.24603254,25644.0,25643.0,0.297485]
[1693596254696,0.24603254,25644.0,25643.0,0.298485]
[1693596255367,0.24603254,25644.0,25643.0,0.54182057]
[1693596255568,0.24603254,25644.0,25643.0,1.00890735]
[1693596255768,0.24603254,25644.0,25643.0,0.92890735]
[1693596256234,0.24603254,25644.0,25643.0,0.298485]
[1693596257805,0.002,25644.0,25643.0,0.57476685]
[1693596259068,0.24601582,25644.0,25643.0,0.57476685]
[1693596259258,0.24601582,25644.0,25643.0,0.298485]
[1693596259901,0.002,25644.0,25643.0,0.298485]
[1693596261238,0.24601951,25644.0,25643.0,0.298485]
[1693596261438,0.002,25644.0,25643.0,0.298485]
[1693596261570,0.002,25644.0,25643.0,0.23999]
[1693596261975,0.24602375,25644.0,25643.0,0.23999]
[1693596262703,0.002,25644.0,25643.0,0.23999]
[1693596264423,0.002,25644.0,25643.0,0.298485]
[1693596266074,0.002,25644.0,25643.0,0.30887396]
[1693596267157,0.002,25644.0,25643.0,0.18687396]
[1693596267916,0.002,25644.0,25643.0,0.06988396]
[1693596268117,0.586932,25644.0,25643.0,0.01138896]
[1693596268490,0.83096296,25644.0,25643.0,0.01138896]
[1693596268830,0.24603096,25644.0,25643.0,0.001]
[1693596269553,0.40043096,25644.0,25643.0,0.001]
[1693596273216,0.40043096,25644.0,25643.0,0.11799]
[1693596273931,0.40043096,25644.0,25643.0,0.12834755]
[1693596274065,0.40043096,25644.0,25643.0,0.3377284]
[1693596275092,0.40043096,25644.0,25643.0,0.5182234]
[1693596283250,0.24603096,25644.0,25643.0,0.5182234]
[1693596283928,0.24603096,25644.0,25643.0,0.50786585]
[1693596284118,0.24603096,25644.0,25643.0,0.5073921]
[1693596284272,0.24603096,25644.0,25643.0,0.51778146]
[1693596285156,0.24603096,25644.0,25643.0,0.51824635]
[1693596285959,0.24599586,25644.0,25643.0,0.51824635]
[1693596288030,0.24599586,25644.0,25643.0,0.90533313]
[1693596288372,0.24599586,25644.0,25643.0,0.94533313]
[1693596289990,0.24599586,25644.0,25643.0,1.26533313]
[1693596290224,0.24599586,25644.0,25643.0,1.05642603]
[1693596290397,0.002,25644.0,25643.0,1.05642603]
[1693596291233,0.002,25644.0,25643.0,1.28712156]
[1693596291388,0.002,25644.0,25643.0,1.05642603]
[1693596291585,0.002,25644.0,25643.0,1.17642603]
[1693596292439,0.002,25644.0,25643.0,1.19642603]
[1693596292793,0.0195,25646.0,25645.0,0.06]
[1693596293041,0.0195,25646.0,25645.0,0.80304678]
[1693596293337,0.0195,25646.0,25645.0,1.10304678]
[1693596293537,0.0195,25646.0,25645.0,1.22304678]
[1693596294975,0.0205,25646.0,25645.0,1.26004678]
[1693596295361,0.0205,25646.0,25645.0,1.50506825]
[1693596295550,0.0205,25646.0,25645.0,1.29704678]
[1693596295695,0.0205,25646.0,25645.0,1.26004678]
[1693596296108,0.0205,25646.0,25645.0,1.55411236]
[1693596296309,0.0205,25646.0,25645.0,1.29704678]
[1693596296921,0.0195,25646.0,25645.0,1.26004678]
[1693596297147,0.0205,25646.0,25645.0,1.2975098]
[1693596297346,0.0205,25646.0,25645.0,1.30784584]
[1693596297606,0.0205,25646.0,25645.0,1.52290039]
[1693596297785,0.0205,25646.0,25645.0,1.30784584]
[1693596301521,0.0205,25646.0,25645.0,1.38633584]
[1693596302499,0.0205,25646.0,25645.0,1.39785233]
[1693596302905,0.0205,25646.0,25645.0,1.64253798]
[1693596303125,0.0205,25646.0,25645.0,1.67355458]
[1693596304605,0.0205,25646.0,25645.0,1.06584584]
[1693596304849,0.1718,25646.0,25645.0,1.45267102]
[1693596305100,0.1718,25646.0,25645.0,1.33067102]
[1693596305320,0.0205,25646.0,25645.0,1.34890265]
[1693596305545,0.0205,25646.0,25645.0,1.37745913]
[1693596306865,0.1775,25646.0,25645.0,1.37745913]
[1693596307762,0.0205,25646.0,25645.0,1.10584584]
[1693596308459,0.0205,25646.0,25645.0,1.22784584]
[1693596309723,0.0205,25646.0,25645.0,1.49198162]
[1693596310151,0.0205,25646.0,25645.0,1.22784584]
[1693596310819,0.0205,25646.0,25645.0,1.46806458]
[1693596311038,0.0205,25646.0,25645.0,1.22784584]
[1693596312169,0.0205,25646.0,25645.0,1.24784584]
[1693596313660,0.0205,25646.0,25645.0,1.50346287]
[1693596313866,0.0205,25646.0,25645.0,1.48346287]
[1693596314295,0.1829,25646.0,25645.0,1.48346287]
[1693596315172,0.1829,25646.0,25645.0,1.22784584]
[1693596315390,0.1829,25646.0,25645.0,1.43635289]
[1693596315681,0.1829,25646.0,25645.0,1.22784584]
[1693596316337,0.1829,25646.0,25645.0,1.46085603]
[1693596316766,0.1829,25646.0,25645.0,1.44085603]
[1693596321778,0.1829,25646.0,25645.0,1.44055603]
[1693596325618,0.1829,25646.0,25645.0,1.16754584]
[1693596325868,0.1829,25646.0,25645.0,0.67875906]
[1693596326078,0.1829,25646.0,25645.0,0.80045906]
[1693596335311,0.1779,25646.0,25645.0,0.80045906]
[1693596336976,0.1779,25646.0,25645.0,0.67875906]
[1693596344300,0.1779,25646.0,25645.0,0.87495916]
[1693596344515,0.0155,25646.0,25645.0,1.35844726]
[1693596344735,0.0195,25649.0,25648.0,0.06]
[1693596344945,0.0195,25649.0,25648.0,0.8951402]
[1693596345113,0.0195,25649.0,25648.0,1.04470134]
[1693596345319,0.0195,25649.0,25648.0,1.11460126]
[1693596345938,0.0205,25649.0,25648.0,1.14060126]
[1693596347164,0.0205,25649.0,25648.0,1.16160126]
[1693596347376,0.0205,25649.0,25648.0,1.40593107]
[1693596351713,0.0205,25649.0,25648.0,1.30330126]
[1693596351926,0.1598,25652.0,25651.0,0.06]
[1693596352151,0.0195,25653.0,25652.0,0.06]
[1693596352361,0.0195,25653.0,25652.0,1.1366362]
[1693596352583,0.0195,25653.0,25652.0,1.04420878]
[1693596352791,0.0195,25653.0,25652.0,1.28099792]
[1693596353199,0.0195,25653.0,25652.0,1.28145677]
[1693596354075,0.0195,25653.0,25652.0,1.04466763]
[1693596354274,0.0195,25653.0,25652.0,1.32144702]
[1693596354486,0.0195,25653.0,25652.0,1.06466763]
[1693596354705,0.0195,25653.0,25652.0,1.10166763]
[1693596354913,0.0195,25653.0,25652.0,1.13866763]
[1693596355127,0.0195,25653.0,25652.0,1.10166763]
[1693596355542,0.0195,25653.0,25652.0,1.13866763]
[1693596355746,0.0195,25653.0,25652.0,1.10166763]
[1693596355953,0.0195,25653.0,25652.0,1.13866763]
[1693596356827,0.0195,25653.0,25652.0,1.56936763]
[1693596357041,0.0195,25655.0,25654.0,0.06]
[1693596357256,0.0195,25655.0,25654.0,0.80266678]
[1693596357463,0.0195,25655.0,25654.0,1.10266678]
[1693596358282,0.0195,25655.0,25654.0,1.13966678]
[1693596359091,0.0195,25655.0,25654.0,1.17666678]
[1693596359504,0.0195,25655.0,25654.0,1.43819886]
[1693596361206,0.0195,25655.0,25654.0,1.43865512]
[1693596363368,0.0195,25655.0,25654.0,1.17712304]
[1693596363602,0.0195,25655.0,25654.0,1.41352017]
[1693596367362,0.0195,25655.0,25654.0,1.17712304]
[1693596367566,0.0195,25655.0,25654.0,1.45122687]
[1693596372155,0.0195,25655.0,25654.0,1.46251572]
[1693596380218,0.0195,25655.0,25654.0,0.62115511]
[1693596380402,0.0195,25655.0,25654.0,0.60115511]
[1693596380607,0.0195,25655.0,25654.0,0.18421511]
[1693596380815,0.0195,25655.0,25654.0,0.12574511]
[1693596381273,0.805881,25655.0,25654.0,0.08574511]
[1693596381501,1.04978049,25655.0,25654.0,0.07445626]
[1693596382119,1.04978049,25655.0,25654.0,0.074]
[1693596382750,0.46509949,25655.0,25654.0,0.074]
[1693596383581,0.62249949,25655.0,25654.0,0.074]
[1693596383984,0.50079949,25655.0,25654.0,0.074]
[1693596388142,0.50079949,25655.0,25654.0,0.07441958]
[1693596388957,0.50079949,25655.0,25654.0,0.08570787]
[1693596389159,0.50079949,25655.0,25654.0,0.08528829]
[1693596390228,0.50079949,25655.0,25654.0,0.074]
[1693596392454,0.2569,25655.0,25654.0,0.074]
[1693596402308,2.7552147,25655.0,25654.0,0.074]
[1693596402514,3.10309143,25655.0,25654.0,0.074]
[1693596402722,2.99434694,25655.0,25654.0,0.074]
[1693596402934,3.08807638,25655.0,25654.0,0.074]
[1693596403142,3.08327638,25655.0,25654.0,0.074]
[1693596403355,2.87707965,25655.0,25654.0,0.074]
[1693596403567,2.94265965,25655.0,25654.0,0.074]
[1693596403765,2.94301965,25655.0,25654.0,0.074]
[1693596403963,2.94307965,25655.0,25654.0,0.074]
[1693596404181,2.94343965,25655.0,25654.0,0.074]
[1693596404395,2.94367965,25655.0,25654.0,0.074]
[1693596404598,2.94385965,25655.0,25654.0,0.074]
[1693596404797,2.94553965,25655.0,25654.0,0.074]
[1693596405004,2.94595965,25655.0,25654.0,0.074]
[1693596405203,2.94673965,25655.0,25654.0,0.074]
[1693596405409,2.94601965,25655.0,25654.0,0.074]
[1693596405619,2.94559965,25655.0,25654.0,0.074]
[1693596405817,2.94565965,25655.0,25654.0,0.074]
[1693596406272,2.94571965,25655.0,25654.0,0.074]
[1693596406651,2.94487965,25655.0,25654.0,0.074]
[1693596406866,2.94685965,25655.0,25654.0,0.074]
[1693596407073,2.94577965,25655.0,25654.0,0.074]
[1693596407227,2.94583965,25655.0,25654.0,0.074]
[1693596407424,2.94715965,25655.0,25654.0,0.074]
[1693596407630,2.94295965,25655.0,25654.0,0.074]
[1693596408026,2.94307965,25655.0,25654.0,0.074]
[1693596408246,2.94379965,25655.0,25654.0,0.074]
[1693596408432,2.94433965,25655.0,25654.0,0.074]
[1693596408742,2.94733965,25655.0,25654.0,0.074]
[1693596408937,2.94841965,25655.0,25654.0,0.074]
[1693596409561,2.94859965,25655.0,25654.0,0.074]
[1693596409763,2.94871965,25655.0,25654.0,0.074]
[1693596410070,2.94475965,25655.0,25654.0,0.074]
[1693596410248,2.94469965,25655.0,25654.0,0.074]
[1693596410450,2.94391965,25655.0,25654.0,0.074]
[1693596410660,2.94445965,25655.0,25654.0,0.074]
[1693596411071,2.94463965,25655.0,25654.0,0.074]
[1693596411272,2.94475965,25655.0,25654.0,0.074]
[1693596411478,2.94463965,25655.0,25654.0,0.074]
[1693596411910,2.94487965,25655.0,25654.0,0.074]
[1693596412114,2.94493965,25655.0,25654.0,0.074]
[1693596412316,2.94715965,25655.0,25654.0,0.074]
[1693596412484,2.94757965,25655.0,25654.0,0.074]
[1693596412663,2.94763965,25655.0,25654.0,0.074]
[1693596412864,2.94757965,25655.0,25654.0,0.074]
[1693596413251,2.94763965,25655.0,25654.0,0.074]
[1693596413452,2.94781965,25655.0,25654.0,0.074]
[1693596413647,2.94943965,25655.0,25654.0,0.074]
[1693596413843,2.94877965,25655.0,25654.0,0.074]
[1693596414046,2.94805965,25655.0,25654.0,0.074]
[1693596414248,2.95201965,25655.0,25654.0,0.074]
[1693596414479,2.95213965,25655.0,25654.0,0.074]
[1693596414679,2.96005965,25655.0,25654.0,0.074]
[1693596414887,2.96101965,25655.0,25654.0,0.074]
[1693596415299,2.96347965,25655.0,25654.0,0.074]
[1693596415474,2.96341965,25655.0,25654.0,0.074]
[1693596415676,2.96389965,25655.0,25654.0,0.074]
[1693596415881,2.96515965,25655.0,25654.0,0.074]
[1693596416107,2.95879965,25655.0,25654.0,0.074]